{"text_format":"3","workbook":"xlsx","n_sheets":8,"sheets":["5 класс","6 класс","7 класс","8 класс","9 класс","10 класс ","11 класс","победители и призеры"],"not_rendered":{"defined_names":1},"read":"whole","date_system":"1900"}

{"sheet":"5 класс","index":0,"n_rows":12,"n_cols":13,"rows_kept":12,"merged":[[0,0,0,12],[2,0,2,1],[2,2,2,3],[3,0,3,1],[3,2,3,3],[4,3,4,8],[4,10,4,12],[10,3,10,7],[11,3,13,7]]}
["Список победителей и призеров  школьного этапа всероссийской (республиканской) олимпиады 2019/2020 учебного года по предмету "]
[]
["Этап олимпиады",null,"школьный"]
["Предмет"]
[{"$nulls":3},"Участник олимпиады",{"$nulls":6},"Учитель"]
["№ п/п","Район","Полное наименование образовательного учреждения (по уставу)","Фамилия","Имя","Отчество","Класс","Количество баллов","Статус (победитель/призер)","Максимально возможное кол-во баллов  по предмету мун.этапа","Фамилия педагога, подготовившего, участника олимпиады)","имя","отчество"]
[1,"Мензелинский"]
[2,"Мензелинский"]
[]
[]
[{"$nulls":3},"Председатель жюри:         "]
[{"$nulls":3},"Член жюри:        "]

{"sheet":"6 класс","index":1,"n_rows":11,"n_cols":13,"rows_kept":11,"merged":[[0,0,0,12],[2,0,2,1],[2,2,2,3],[3,0,3,1],[3,2,3,3],[4,3,4,8],[4,10,4,12],[9,2,9,6],[10,2,12,6]]}
["Список победителей и призеров  школьного этапа всероссийской (республиканской) олимпиады 2019/2020 учебного года по предмету "]
[]
["Этап олимпиады",null,"школьный"]
["Предмет"]
[{"$nulls":3},"Участник олимпиады",{"$nulls":6},"Учитель"]
["№ п/п","Район","Полное наименование образовательного учреждения (по уставу)","Фамилия","Имя","Отчество","Класс","Количество баллов","Статус (победитель/призер)","Максимально возможное кол-во баллов  по предмету мун.этапа","Фамилия педагога, подготовившего, участника олимпиады)","имя","отчество"]
[1,"Мензелинский"]
[2,"Мензелинский"]
[]
[null,null,"Председатель жюри:         "]
[null,null,"Член жюри:       "]

{"sheet":"7 класс","index":2,"n_rows":12,"n_cols":13,"rows_kept":12,"merged":[[0,0,0,12],[2,0,2,1],[2,2,2,3],[3,0,3,1],[3,2,3,3],[4,3,4,8],[4,10,4,12],[10,2,10,6],[11,2,13,6]]}
["Список победителей и призеров  школьного этапа всероссийской (республиканской) олимпиады 2019/2020 учебного года по предмету"]
[]
["Этап олимпиады",null,"школьный"]
["Предмет",null,"русский язык"]
[{"$nulls":3},"Участник олимпиады",{"$nulls":6},"Учитель"]
["№ п/п","Район","Полное наименование образовательного учреждения (по уставу)","Фамилия","Имя","Отчество","Класс","Количество баллов","Статус (победитель/призер)","Максимально возможное кол-во баллов  по предмету мун.этапа","Фамилия педагога, подготовившего, участника олимпиады)","имя","отчество"]
[1,"Мензелинский",{"$f":"$C$7","v":"ГАПОУ \"Мензелинский педагогический колледж имени Мусы Джалиля\""},"Ямалетдинова","Лилиана","Ильдаровна",7,27,"победитель",49,"Сысоева ","Надежда ","Александровна"]
[2,"Мензелинский","ГАПОУ \"Мензелинский педагогический колледж имени Мусы Джалиля\"","Якушева","Азалия","Сергеевна",7,21,"призер",49,"Сысоева ","Надежда ","Александровна"]
[3,"Мензелинский","ГАПОУ \"Мензелинский педагогический колледж имени Мусы Джалиля\"","Кайзерова","Дарья ","Владимировна",7,15,"призер",49,"Сысоева ","Надежда ","Александровна"]
[]
[null,null,"Председатель жюри: Лаптева М.П.      "]
[null,null,"Члены жюри:     Галиева И.М.,  Сысоева Н.А., Титова Н.М."]

{"sheet":"8 класс","index":3,"n_rows":12,"n_cols":13,"rows_kept":12,"merged":[[0,0,0,12],[2,0,2,1],[2,2,2,3],[3,0,3,1],[3,2,3,3],[4,3,4,8],[4,10,4,12],[10,2,10,6],[11,2,13,6]]}
["Список победителей и призеров  школьного этапа всероссийской (республиканской) олимпиады 2019/2020 учебного года по предмету"]
[]
["Этап олимпиады",null,"школьный"]
["Предмет"]
[{"$nulls":3},"Участник олимпиады",{"$nulls":6},"Учитель"]
["№ п/п","Район","Полное наименование образовательного учреждения (по уставу)","Фамилия","Имя","Отчество","Класс","Количество баллов","Статус (победитель/призер)","Максимально возможное кол-во баллов  по предмету мун.этапа","Фамилия педагога, подготовившего, участника олимпиады)","имя","отчество"]
[1,"Мензелинский",{"$f":"$C$7","v":"ГАПОУ \"Мензелинский педагогический колледж имени Мусы Джалиля\""},"Абдулвалеев","Амир","Ришатович",8,22,"призер",49,"Сысоева ","Надежда ","Александровна"]
[2,"Мензелинский","ГАПОУ \"Мензелинский педагогический колледж имени Мусы Джалиля\"","Кочнев ","Иван","Сергеевич",8,20,"призер",49,"Сысоева ","Надежда ","Александровна"]
[3,"Мензелинский","ГАПОУ \"Мензелинский педагогический колледж имени Мусы Джалиля\"","Мирзагалимова","Марьям","Фанилевна",8,20,"призер",49,"Сысоева ","Надежда ","Александровна"]
[]
[null,null,"Председатель жюри: Лаптева М.П.      "]
[null,null,"Члены жюри:     Галиева И.М.,  Сысоева Н.А., Титова Н.М."]

{"sheet":"9 класс","index":4,"n_rows":12,"n_cols":13,"rows_kept":12,"merged":[[0,0,0,12],[2,0,2,1],[2,2,2,3],[3,0,3,1],[3,2,3,3],[4,3,4,8],[4,10,4,12],[10,2,10,6],[11,2,13,6]]}
["Список победителей и призеров  школьного этапа всероссийской (республиканской) олимпиады 2019/2020 учебного года по предмету "]
[]
["Этап олимпиады",null,"школьный"]
["Предмет"]
[{"$nulls":3},"Участник олимпиады",{"$nulls":6},"Учитель"]
["№ п/п","Район","Полное наименование образовательного учреждения (по уставу)","Фамилия","Имя","Отчество","Класс","Количество баллов","Статус (победитель/призер)","Максимально возможное кол-во баллов  по предмету мун.этапа","Фамилия педагога, подготовившего, участника олимпиады)","имя","отчество"]
[1,"Мензелинский",{"$f":"$C$7","v":"ГАПОУ \"Мензелинский педагогический колледж имени Мусы Джалиля\""},"Харитонов ","Игорь","Андреевич",9,10,"призер",54,"Сысоева ","Надежда ","Александровна"]
[2,"Мензелинский","ГАПОУ \"Мензелинский педагогический колледж имени Мусы Джалиля\"","Звездина","Елизавета ","Викторовна",9,10,"призер",54,"Сысоева ","Надежда ","Александровна"]
[3,"Мензелинский","ГАПОУ \"Мензелинский педагогический колледж имени Мусы Джалиля\"","Мавлютова ","Азалина","Равильевна",9,12,"призер",54,"Сысоева ","Надежда ","Александровна"]
[]
[null,null,"Председатель жюри: Лаптева М.П.      "]
[null,null,"Члены жюри:     Галиева И.М.,  Сысоева Н.А., Титова Н.М."]

{"sheet":"10 класс ","index":5,"n_rows":15,"n_cols":13,"rows_kept":15,"merged":[[0,0,0,12],[2,0,2,1],[2,2,2,3],[3,0,3,1],[3,2,3,3],[4,3,4,8],[4,10,4,12],[13,2,13,6],[14,2,16,6]]}
["Список победителей и призеров  школьного этапа всероссийской (республиканской) олимпиады 2019/2020 учебного года по предмету "]
[]
["Этап олимпиады",null,"школьный"]
["Предмет"]
[{"$nulls":3},"Участник олимпиады",{"$nulls":6},"Учитель"]
["№ п/п","Район","Полное наименование образовательного учреждения (по уставу)","Фамилия","Имя","Отчество","Класс","Количество баллов","Статус (победитель/призер)","Максимально возможное кол-во баллов  по предмету мун.этапа","Фамилия педагога, подготовившего, участника олимпиады)","имя","отчество"]
[1,"Мензелинский","ГАПОУ \"Мензелинский педагогический колледж имени Мусы Джалиля\"","Волкова","Дарья ","Игоревна",10,18,"призер",56,"Титова","Неля","Музафаровна"]
[2,"Мензелинский",{"$f":"$C$7","v":"ГАПОУ \"Мензелинский педагогический колледж имени Мусы Джалиля\""},"Ризатдинова ","Карима","Радиковна",10,17,"призер",56,"Титова","Неля","Музафаровна"]
[3,"Мензелинский",{"$f":"$C$7","v":"ГАПОУ \"Мензелинский педагогический колледж имени Мусы Джалиля\""},"Токарев ","Михаил","Алексеевич",10,16,"призер",56,"Титова","Неля ","Музафаровна"]
[4,"Мензелинский",{"$f":"$C$7","v":"ГАПОУ \"Мензелинский педагогический колледж имени Мусы Джалиля\""},"Фарисова ","Ильвина ","Ильфаровна",10,12,"призер",56,"Бокова","Вера","Леонидовна"]
[5,"Мензелинский",{"$f":"$C$7","v":"ГАПОУ \"Мензелинский педагогический колледж имени Мусы Джалиля\""},"Фазуллзянова","Полина","Рафаэлевна",10,14,"призер",56,"Бокова ","Вера","Леонидовна"]
[6,"Мензелинский","ГАПОУ \"Мензелинский педагогический колледж имени Мусы Джалиля\"","Фахрутдинова ","Лилия","Юрьевна",10,10,"призер",56,"Бокова","Вера","Леонидовна"]
[]
[null,null,"Председатель жюри: Лаптева М.П.      "]
[null,null,"Члены жюри:     Галиева И.М.,  Сысоева Н.А., Титова Н.М."]

{"sheet":"11 класс","index":6,"n_rows":11,"n_cols":13,"rows_kept":11,"merged":[[0,0,0,12],[2,0,2,1],[2,2,2,3],[3,0,3,1],[3,2,3,3],[4,3,4,8],[4,10,4,12],[9,4,9,8],[10,4,12,8]]}
["Список победителей и призеров  школьного этапа всероссийской (республиканской) олимпиады 2019/2020 учебного года по предмету "]
[]
["Этап олимпиады",null,"школьный"]
["Предмет"]
[{"$nulls":3},"Участник олимпиады",{"$nulls":6},"Учитель"]
["№ п/п","Район","Полное наименование образовательного учреждения (по уставу)","Фамилия","Имя","Отчество","Класс","Количество баллов","Статус (победитель/призер)","Максимально возможное кол-во баллов  по предмету мун.этапа","Фамилия педагога, подготовившего, участника олимпиады)","имя","отчество"]
[1,"Мензелинский"]
[2,"Мензелинский"]
[]
[{"$nulls":4},"Председатель жюри:         "]
[{"$nulls":4},"Члены жюри:        "]

{"sheet":"победители и призеры","index":7,"n_rows":24,"n_cols":13,"rows_kept":24,"merged":[[0,0,0,12],[2,0,2,1],[2,2,2,3],[3,0,3,1],[3,2,3,3],[4,3,4,8],[4,10,4,12],[22,4,22,8],[23,4,25,8]]}
["Список победителей и призеров  школьного этапа всероссийской (республиканской) олимпиады 2019/2020 учебного года по предмету "]
[]
["Этап олимпиады",null,"школьный"]
["Предмет",null,"русский язык"]
[{"$nulls":3},"Участник олимпиады",{"$nulls":6},"Учитель"]
["№ п/п","Район","Полное наименование образовательного учреждения (по уставу)","Фамилия","Имя","Отчество","Класс","Количество баллов","Статус (победитель/призер)","Максимально возможное кол-во баллов  по предмету мун.этапа","Фамилия педагога, подготовившего, участника олимпиады)","имя","отчество"]
[1,"Мензелинский","ГАПОУ \"Мензелинский педагогический колледж имени Мусы Джалиля\"","Волкова","Дарья ","Игоревна",10,18,"призер",56,"Титова","Неля","Музафаровна"]
[2,"Мензелинский",{"$f":"$C$7","v":"ГАПОУ \"Мензелинский педагогический колледж имени Мусы Джалиля\""},"Ризатдинова ","Карима","Радиковна",10,17,"призер",56,"Титова","Неля","Музафаровна"]
[3,"Мензелинский",{"$f":"$C$7","v":"ГАПОУ \"Мензелинский педагогический колледж имени Мусы Джалиля\""},"Токарев ","Михаил","Алексеевич",10,16,"призер",56,"Титова","Неля ","Музафаровна"]
[4,"Мензелинский",{"$f":"$C$7","v":"ГАПОУ \"Мензелинский педагогический колледж имени Мусы Джалиля\""},"Фарисова ","Ильвина ","Ильфаровна",10,12,"призер",56,"Бокова","Вера","Леонидовна"]
[5,"Мензелинский",{"$f":"$C$7","v":"ГАПОУ \"Мензелинский педагогический колледж имени Мусы Джалиля\""},"Фазуллзянова","Полина","Рафаэлевна",10,14,"призер",56,"Бокова ","Вера","Леонидовна"]
[6,"Мензелинский","ГАПОУ \"Мензелинский педагогический колледж имени Мусы Джалиля\"","Фахрутдинова ","Лилия","Юрьевна",10,10,"призер",56,"Бокова","Вера","Леонидовна"]
[7,"Мензелинский","ГАПОУ \"Мензелинский педагогический колледж имени Мусы Джалиля\"","Харитонов ","Игорь","Андреевич",9,10,"призер",54,"Сысоева ","Надежда ","Александровна"]
[8,"Мензелинский","ГАПОУ \"Мензелинский педагогический колледж имени Мусы Джалиля\"","Звездина","Елизавета ","Викторовна",9,10,"призер",54,"Сысоева ","Надежда ","Александровна"]
[9,"Мензелинский","ГАПОУ \"Мензелинский педагогический колледж имени Мусы Джалиля\"","Мавлютова ","Азалина","Равильевна",9,12,"призер",54,"Сысоева ","Надежда ","Александровна"]
[10,"Мензелинский","ГАПОУ \"Мензелинский педагогический колледж имени Мусы Джалиля\"","Абдулвалеев","Амир","Ришатович",8,22,"призер",49,"Сысоева ","Надежда ","Александровна"]
[11,"Мензелинский","ГАПОУ \"Мензелинский педагогический колледж имени Мусы Джалиля\"","Кочнев ","Иван","Сергеевич",8,20,"призер",49,"Сысоева ","Надежда ","Александровна"]
[12,"Мензелинский","ГАПОУ \"Мензелинский педагогический колледж имени Мусы Джалиля\"","Мирзагалимова","Марьям","Фанилевна",8,20,"призер",49,"Сысоева ","Надежда ","Александровна"]
[13,"Мензелинский","ГАПОУ \"Мензелинский педагогический колледж имени Мусы Джалиля\"","Ямалетдинова","Лилиана","Ильдаровна",7,27,"победитель",49,"Сысоева ","Надежда ","Александровна"]
[14,"Мензелинский","ГАПОУ \"Мензелинский педагогический колледж имени Мусы Джалиля\"","Якушева","Азалия","Сергеевна",7,21,"призер",49,"Сысоева ","Надежда ","Александровна"]
[15,"Мензелинский","ГАПОУ \"Мензелинский педагогический колледж имени Мусы Джалиля\"","Кайзерова","Дарья ","Владимировна",7,15,"призер",49,"Сысоева ","Надежда ","Александровна"]
[]
[{"$nulls":4},"Председатель жюри: Лаптева М.П.      "]
[{"$nulls":4},"Члены жюри:     Галиева И.М.,  Сысоева Н.А., Титова Н.М."]